bitfinex/quotes_SOLUSD_20240826
["timestamp","ask_amount","ask_price","bid_price","bid_amount"]
[1724708700844,5.8315,157.94,157.89,45.0]
[1724708705066,5.8315,157.94,157.89,51.3335]
[1724708705762,5.8315,157.94,157.89,45.0]
[1724708706345,5.8315,157.94,157.89,52.59971609]
[1724708706562,6.3311,157.95,157.89,51.3333]
[1724708707778,6.3315,157.94,157.89,51.3333]
[1724708715672,6.3321,157.93,157.87,15.8349]
[1724708715880,6.3321,157.93,157.87,28.20806593]
[1724708716565,6.3321,157.93,157.88,6.3337]
[1724708717071,6.3321,157.93,157.89,45.0]
[1724708717469,6.9274597,157.96,157.89,45.0]
[1724708717470,19.30062563,157.96,157.89,45.0]
[1724708717676,6.333,157.91,157.82,34.64761807]
[1724708717982,6.333,157.91,157.83,17.42478358]
[1724708718174,6.333,157.91,157.84,1.58598358]
[1724708718379,6.333,157.91,157.86,6.3347]
[1724708718578,6.3323,157.92,157.86,6.3347]
[1724708719080,6.3323,157.92,157.87,45.0]
[1724708724479,20.0,157.95,157.87,45.0]
[1724708724683,6.3327,157.91,157.87,45.0]
[1724708724981,6.3327,157.91,157.86,45.0]
[1724708725182,6.3321,157.93,157.86,45.0]
[1724708725382,6.3326,157.92,157.86,51.3346]
[1724708725584,6.3328,157.91,157.86,51.3346]
[1724708729895,6.3333,157.9,157.86,45.0]
[1724708739976,6.3335,157.89,157.86,45.0]
[1724708740287,6.3339,157.88,157.83,6.3357]
[1724708740599,6.3339,157.88,157.84,1.58617327]
[1724708740773,6.3339,157.88,157.83,6.3357]
[1724708741106,6.3339,157.88,157.84,1.58618318]
[1724708741298,6.3339,157.88,157.83,6.3357]
[1724708741497,6.3339,157.88,157.84,1.58618252]
[1724708741677,6.3339,157.88,157.84,45.0]
[1724708743970,6.3339,157.88,157.83,45.0]
[1724708744206,6.3339,157.88,157.84,1.58622103]
[1724708744378,6.3339,157.88,157.83,45.0]
[1724708744580,6.3339,157.88,157.84,1.58621969]
[1724708744879,6.3339,157.88,157.83,45.0]
[1724708745200,6.3339,157.88,157.84,1.58621969]
[1724708745407,6.3339,157.88,157.83,45.0]
[1724708745610,6.3339,157.88,157.84,1.5862212]
[1724708745782,6.3339,157.88,157.83,45.0]
[1724708745981,6.3339,157.88,157.84,1.5862212]
[1724708746296,6.3339,157.88,157.83,45.0]
[1724708746600,6.3339,157.88,157.84,1.5862212]
[1724708746797,6.3339,157.88,157.83,51.3359]
[1724708746992,6.3339,157.88,157.84,1.58622774]
[1724708747200,6.3339,157.88,157.83,51.3359]
[1724708747394,6.3339,157.88,157.84,1.58622823]
[1724708747695,6.3339,157.88,157.83,51.3359]
[1724708747876,6.3339,157.88,157.84,1.58622118]
[1724708748077,6.3339,157.88,157.83,51.3359]
[1724708748299,6.3339,157.88,157.84,1.58622118]
[1724708748501,6.3339,157.88,157.83,51.3359]
[1724708748806,6.3339,157.88,157.84,1.58622118]
[1724708749001,6.3339,157.88,157.83,51.3359]
[1724708749310,6.3335,157.89,157.84,1.58622118]
[1724708749508,6.3335,157.89,157.83,51.3359]
[1724708749808,6.3335,157.89,157.84,1.58622086]
[1724708750017,6.3335,157.89,157.83,51.3359]
[1724708750310,6.3335,157.89,157.84,1.58622086]
[1724708750474,6.3339,157.88,157.83,51.3359]
[1724708750677,6.3339,157.88,157.84,1.58621983]
[1724708750906,6.3339,157.88,157.83,51.3359]
[1724708751108,6.3339,157.88,157.84,1.58621951]
[1724708751410,6.3339,157.88,157.83,45.0]
[1724708751578,6.3339,157.88,157.84,1.58622103]
[1724708751781,6.3339,157.88,157.83,45.0]
[1724708751979,6.3339,157.88,157.84,1.58622086]
[1724708752181,6.3339,157.88,157.83,51.3358]
[1724708752412,6.3339,157.88,157.84,1.58621951]
[1724708752710,6.3339,157.88,157.83,51.3358]
[1724708752908,6.3339,157.88,157.84,1.58621968]
[1724708753204,6.3339,157.88,157.83,51.3358]
[1724708753413,6.3339,157.88,157.84,1.58622135]
[1724708753596,6.3339,157.88,157.83,51.3358]
[1724708753782,6.3339,157.88,157.84,1.58622103]
[1724708753985,6.3339,157.88,157.83,51.3358]
[1724708754212,6.3339,157.88,157.84,1.58622135]
[1724708754511,6.3339,157.88,157.83,45.0]
[1724708754720,6.3339,157.88,157.84,1.58622083]
[1724708754882,6.3339,157.88,157.83,51.3358]
[1724708755083,6.3339,157.88,157.84,1.58622083]
[1724708755397,6.3339,157.88,157.83,51.3358]
[1724708755713,6.3339,157.88,157.84,1.58622115]
[1724708756014,6.3339,157.88,157.83,51.3358]
[1724708756203,6.3339,157.88,157.84,1.58622132]
[1724708756405,6.3339,157.88,157.83,51.3358]
[1724708756607,6.3339,157.88,157.84,1.58622098]
[1724708756919,6.3339,157.88,157.83,51.3358]
[1724708757510,6.3339,157.88,157.84,1.58622132]
[1724708757813,6.3339,157.88,157.83,51.3358]
[1724708758114,15.055,158.13,157.96,22.451]
[1724708758413,15.055,158.13,157.97,45.0]
[1724708758414,12.37316593,158.05,157.97,45.0]
[1724708759007,6.3276,158.04,157.98,1.58528969]
[1724708759308,6.3276,158.04,157.96,22.451]
[1724708759797,6.3276,158.04,157.96,6.2001]
[1724708760208,20.0,158.03,157.96,6.2001]
[1724708760404,20.0,158.03,157.95,15.8276]
[1724708760583,20.0,158.03,157.97,6.3302]
[1724708763484,32.37316593,158.03,157.95,22.1584]
[1724708763683,12.37316593,158.01,157.93,6.3315]
[1724708763898,20.0,158.0,157.94,6.3315]
[1724708764095,12.37316593,158.01,157.94,6.3315]
[1724708764319,12.37316593,158.03,157.94,6.3315]
[1724708764808,20.0,158.02,157.94,6.3315]
[1724708766592,20.0,158.02,157.95,6.331]
[1724708774509,6.3287,158.01,157.95,6.331]
[1724708774826,20.0,158.0,157.95,6.331]
[1724708778626,26.3291,158.0,157.95,6.331]
[1724708779906,20.0,158.0,157.95,6.3308]
[1724708780124,20.0,158.02,157.95,6.3308]
[1724708780503,6.3291,158.0,157.94,22.16]
[1724708780822,20.0,157.99,157.94,22.16]
[1724708782134,20.0,157.99,157.95,6.331]
[1724708784842,20.0,158.0,157.95,6.331]
[1724708785345,26.3291,158.0,157.95,6.331]
[1724708791338,20.0,158.0,157.94,15.8286]
[1724708791545,12.37316593,158.02,157.94,15.8286]
[1724708791846,20.0,158.01,157.94,15.8286]
[1724708792012,6.3294,158.0,157.94,15.8286]
[1724708792214,20.0,157.99,157.94,22.16]
[1724708792441,26.3295,157.99,157.94,22.16]
[1724708794329,1.14272109,158.07,157.97,15.8253]
[1724708794524,6.3278,158.04,157.98,6.3298]
[1724708794916,12.37316593,158.07,157.98,6.3298]
[1724708794917,6.3279,158.03,157.98,6.3298]
[1724708795858,20.0,158.02,157.98,6.3298]
[1724708798432,26.3283,158.02,157.97,22.1555]
[1724708798753,20.0,158.02,157.98,6.3298]
[1724708798943,20.0,158.04,157.98,6.3298]
[1724708799546,6.328,158.03,157.98,6.3298]
[1724708799850,20.0,158.02,157.98,6.3298]
[1724708800253,6.328,158.03,157.98,6.3298]
[1724708803355,6.328,158.03,157.99,1.58503257]
[1724708803663,6.328,158.03,157.98,6.3298]
[1724708803965,6.328,158.03,157.99,1.58501882]
[1724708804130,6.3272,158.05,158.0,6.329]
[1724708804330,20.0,158.04,157.97,15.8253]
[1724708804639,20.0,158.04,157.99,6.3294]
[1724708804640,26.3278,158.04,157.99,6.3294]
[1724708804841,6.3279,158.03,157.98,6.3298]
[1724708805362,6.3279,158.03,157.99,1.58501882]
[1724708805562,6.3279,158.03,157.98,6.3298]
[1724708805743,6.3279,158.03,157.99,1.58501313]
[1724708805950,6.3279,158.03,157.98,6.3298]
[1724708806261,6.3279,158.03,157.99,1.58501345]
[1724708806443,6.3279,158.03,157.98,6.3298]
[1724708806635,6.3279,158.03,157.99,1.58501313]
[1724708806835,6.3279,158.03,157.98,6.3298]
[1724708807163,6.3279,158.03,157.99,1.58500767]
[1724708807461,20.0,158.04,157.99,6.3294]
[1724708807462,26.3275,158.04,157.99,6.3294]
[1724708809048,15.8149,158.08,158.0,6.3289]
[1724708809364,20.0,158.07,158.0,6.3289]
[1724708810545,6.3274,158.05,158.0,6.3289]
[1724708814965,6.3267,158.06,158.01,29.32068051]
[1724708815271,6.3267,158.06,158.01,27.7359]
[1724708817757,26.3263,158.07,158.02,6.3282]
[1724708830362,15.812,158.11,158.03,6.3276]
[1724708830560,15.812,158.11,158.04,45.0]
[1724708830887,6.3261,158.08,158.03,6.3276]
[1724708831493,6.3263,158.07,158.02,6.3282]
[1724708834505,6.3261,158.08,158.01,49.60176593]
[1724708834662,6.3261,158.08,158.03,6.3277]
[1724708835888,6.3263,158.07,158.02,51.3282]
[1724708836998,20.0,158.1,158.02,45.0]
[1724708837301,20.0,158.1,158.02,51.3279]
[1724708838574,6.3274,158.05,158.01,21.4073]
[1724708846022,6.3275,158.04,158.01,21.4073]
[1724708846923,6.3271,158.05,158.01,21.4073]
[1724708847111,6.3275,158.04,158.01,21.4073]
[1724708851119,6.3275,158.04,158.02,1.58477765]
[1724708851325,6.3275,158.04,158.01,21.4073]
[1724708851531,6.3275,158.04,158.02,1.58477733]
[1724708851811,6.3275,158.04,158.01,21.4073]
[1724708857119,6.3275,158.04,158.02,1.58484331]
[1724708857325,6.3275,158.04,158.01,21.4073]
[1724708857626,6.3275,158.04,158.02,1.58484197]
[1724708857797,6.3275,158.04,158.01,21.4073]
[1724708857997,6.3275,158.04,158.02,1.58484165]
[1724708858228,6.3275,158.04,158.01,21.4073]
[1724708858432,6.3275,158.04,158.02,1.58484299]
[1724708858611,6.3275,158.04,158.01,21.4073]
[1724708858819,6.3275,158.04,158.02,1.58484299]
[1724708859022,6.3275,158.04,158.01,21.4073]
[1724708859315,6.3275,158.04,158.02,1.58484331]
[1724708859507,6.3275,158.04,158.01,21.4073]
[1724708859713,6.3275,158.04,158.02,1.58484331]
[1724708860009,6.3275,158.04,158.01,21.4073]
[1724708860231,6.3275,158.04,158.02,1.58484331]
[1724708860418,6.3275,158.04,158.01,21.4073]
[1724708860622,6.3275,158.04,158.02,1.58484336]
[1724708860822,6.3275,158.04,158.01,21.4073]
[1724708861014,6.3275,158.04,158.02,1.58483483]
[1724708861210,6.3275,158.04,158.01,21.4073]
[1724708861414,6.3275,158.04,158.02,1.58483515]
[1724708861614,6.3275,158.04,158.01,21.4073]
[1724708861823,6.3275,158.04,158.02,1.58484304]
[1724708862119,6.3275,158.04,158.01,21.4073]
[1724708862436,6.3275,158.04,158.02,1.58484336]
[1724708862739,6.3275,158.04,158.01,21.4073]
[1724708863037,6.3275,158.04,158.02,1.58485124]
[1724708863215,6.3275,158.04,158.01,21.4073]
[1724708863617,6.3275,158.04,158.02,1.58484868]
[1724708863935,6.3275,158.04,158.01,21.4073]
[1724708864137,6.3275,158.04,158.02,1.58483194]
[1724708864334,6.3275,158.04,158.01,21.4073]
[1724708864637,6.3275,158.04,158.02,1.58483515]
[1724708864831,6.3275,158.04,158.01,21.4073]
[1724708865022,6.3275,158.04,158.02,1.58484336]
[1724708865222,6.3275,158.04,158.01,21.4073]
[1724708865414,6.3275,158.04,158.02,1.58484285]
[1724708865612,6.3275,158.04,158.01,21.4073]
[1724708865828,6.3275,158.04,158.02,1.58484236]
[1724708866115,6.3275,158.04,158.01,21.4073]
[1724708866311,6.3275,158.04,158.02,1.58483415]
[1724708866518,6.3275,158.04,158.01,21.4073]
[1724708866809,6.3275,158.04,158.02,1.58483432]
[1724708867011,6.3275,158.04,158.01,21.4073]
[1724708867223,6.3275,158.04,158.02,1.58484285]
[1724708867444,6.3275,158.04,158.01,21.4073]
[1724708867608,6.3275,158.04,158.02,1.58484285]
[1724708867808,6.3275,158.04,158.01,21.4073]
[1724708868007,6.3275,158.04,158.02,1.58484219]
[1724708868243,6.3275,158.04,158.01,21.4073]
[1724708868543,6.3275,158.04,158.02,1.58484236]
[1724708868846,6.3275,158.04,158.01,21.4073]
[1724708869015,6.3275,158.04,158.02,1.58484268]
[1724708869220,6.3275,158.04,158.01,21.4073]
[1724708869422,6.3275,158.04,158.02,1.5848343]
[1724708869727,6.3275,158.04,158.01,21.4073]
[1724708869933,6.3275,158.04,158.02,1.58483415]
[1724708870130,6.3275,158.04,158.02,45.0]
[1724708874414,6.3279,158.03,158.02,45.0]
[1724708874728,6.3275,158.04,158.02,46.58487622]
[1724708874932,6.3275,158.04,158.02,45.0]
[1724708881037,6.3275,158.04,158.03,1.58476573]
[1724708881332,6.3275,158.04,158.02,45.0]
[1724708882645,6.3275,158.04,158.03,1.58487537]
[1724708882853,6.3275,158.04,158.02,45.0]
[1724708883427,6.3275,158.04,158.01,21.4073]
[1724708883649,6.3275,158.04,158.02,1.58487569]
[1724708883829,6.3275,158.04,158.01,21.4073]
[1724708884030,6.3275,158.04,158.02,1.58485944]
[1724708884230,6.3275,158.04,158.01,21.4073]
[1724708884429,6.3275,158.04,158.02,1.58485912]
[1724708884640,6.3275,158.04,158.01,21.4073]
[1724708884835,6.3275,158.04,158.01,15.3784]
[1724708886443,6.3279,158.03,158.01,15.3784]
[1724708886645,6.3276,158.04,158.01,15.3784]
[1724708889264,20.0,158.1,158.01,15.8213]
[1724708889468,6.3268,158.06,158.02,1.26542914]
[1724708889957,6.3271,158.05,158.02,4.63799793]
[1724708890640,16.5396,158.08,158.02,3.37256879]
[1724708890851,6.3278,158.04,158.02,3.37256879]
[1724708891859,6.3278,158.04,157.99,20.0]
[1724708894855,6.3278,158.04,157.99,26.3294]
[1724708895159,6.3278,158.04,158.0,48.37302045]
[1724708895457,6.3278,158.04,158.0,45.0]
[1724708897445,6.3278,158.04,158.01,3.37282051]
[1724708897640,6.3278,158.04,158.0,45.0]
[1724708899063,6.3271,158.05,158.0,51.329]
[1724708914381,6.3271,158.05,157.98,28.19766593]
[1724708914382,12.37316593,158.09,157.99,6.3294]
[1724708914661,15.8132,158.1,157.98,15.8245]
[1724708914662,6.3275,158.04,157.98,22.1543]
[1724708915848,6.3275,158.04,157.99,45.0]
[1724708918856,6.3275,158.04,157.99,51.3291]
[1724708924080,15.8177,158.05,157.97,22.828]
[1724708924284,6.3296,157.99,157.97,22.828]
[1724708924600,6.3291,158.0,157.97,22.828]
[1724708924977,6.3291,158.0,157.95,6.331]
[1724708925178,6.3287,158.01,157.95,6.331]
[1724708925562,6.3287,158.01,157.96,1.26584261]
[1724708925762,6.3287,158.01,157.96,45.0]
[1724708929498,6.3293,158.0,157.95,6.331]
[1724708931573,6.3293,158.0,157.96,45.0]
[1724708962113,6.3293,158.0,157.97,1.2658367]
[1724708966938,6.3288,158.01,157.97,7.5960367]
[1724708967228,6.3288,158.01,157.98,45.0]
[1724708969435,6.3284,158.02,157.98,45.0]
[1724708970807,6.3284,158.02,157.99,1.26570584]
[1724708971749,20.0,158.04,157.98,51.3299]
[1724708972055,20.0,158.04,157.99,1.26568315]
[1724708972347,20.0,158.04,157.98,51.3299]
[1724708972557,6.3283,158.02,157.99,1.26569263]
[1724708976235,6.3283,158.02,157.98,45.0]
[1724708977647,6.3283,158.02,157.99,1.2656451]
[1724708978946,6.3279,158.03,157.99,1.2656451]
[1724708979153,6.3279,158.03,157.98,51.3298]
[1724708979662,6.3283,158.02,157.98,51.3298]
[1724708987068,12.37316593,158.02,157.97,22.5704]
[1724708987269,6.329,158.01,157.97,22.5704]
[1724708988451,6.329,158.01,157.97,16.2868]
[1724708990166,32.37316593,158.04,157.97,16.2868]
[1724708990467,6.3294,158.0,157.97,16.2868]
[1724708991363,6.3287,158.02,157.97,16.2868]
[1724708993267,6.3287,158.02,157.98,45.0]
[1724708994643,6.3288,158.01,157.95,15.8275]
[1724708994843,6.3288,158.01,157.96,1.2658553]
[1724708995045,6.3288,158.01,157.96,46.2658553]
[1724708997145,6.3288,158.01,157.96,45.0]
[1724708999176,6.3283,158.02,157.96,67.9298]
[1724708999479,6.3283,158.02,157.96,69.19565052]
[1724708999957,6.3279,158.03,157.97,6.3302]
[1724709000152,6.3283,158.02,157.98,45.0]
[1724709001972,6.3283,158.02,157.97,6.3302]
[1724709002645,6.3287,158.01,157.96,22.9299]
[1724709002846,6.3283,158.02,157.97,51.3301]
[1724709005080,6.3283,158.02,157.98,1.58508545]
[1724709005251,6.3283,158.02,157.97,51.3301]
[1724709005782,6.3287,158.01,157.97,45.0]
[1724709006354,6.3287,158.01,157.98,1.58518403]
[1724709006566,6.3287,158.01,157.96,22.93]
[1724709006776,6.3287,158.01,157.97,1.58511895]
[1724709007048,6.3284,158.02,157.98,1.58511895]
[1724709007249,6.3284,158.02,157.97,6.3301]
[1724709007547,6.3284,158.02,157.98,1.58508545]
[1724709007759,6.3284,158.02,157.97,6.3301]
[1724709007976,6.3284,158.02,157.98,1.58508545]
[1724709008174,6.3284,158.02,157.97,6.3301]
[1724709008598,6.3284,158.02,157.98,1.58508545]
[1724709008803,6.3284,158.02,157.97,6.3301]
[1724709009296,12.37316593,158.05,157.96,16.5993]
[1724709009667,20.0,158.04,157.96,16.5993]
[1724709010693,6.3288,158.01,157.96,22.9299]
[1724709017600,6.3282,158.03,157.97,6.3302]
[1724709017787,6.3283,158.02,157.97,6.3302]
[1724709021203,6.3283,158.02,157.98,6.1452]
[1724709021380,6.3283,158.02,157.98,7.4109132]
[1724709022075,6.3288,158.01,157.98,7.4109132]
[1724709023007,6.3288,158.01,157.98,6.1452]
[1724709023906,6.3283,158.02,157.98,6.1452]
[1724709027415,6.3283,158.02,157.98,7.41091211]
[1724709029205,6.3283,158.02,157.98,6.1452]
[1724709029394,20.0,158.04,157.98,6.1452]
[1724709029395,6.3287,158.01,157.98,6.1452]
[1724709030309,20.0,158.04,157.96,22.9299]
[1724709030481,20.0,158.05,157.97,45.0]
[1724709030690,6.3287,158.01,157.97,45.0]
[1724709032400,28.19246593,158.04,157.97,45.0]
[1724709032724,20.0,158.03,157.97,45.0]
[1724709033699,6.329,158.01,157.97,45.0]
[1724709038309,6.3291,158.0,157.96,22.9299]
[1724709039144,28.19246593,158.04,157.96,22.9299]
[1724709039145,25.51335106,158.12,157.97,6.2236]
[1724709039423,12.37316593,158.1,158.01,15.9463]
[1724709039623,12.37316593,158.1,158.02,1.26542803]
[1724709040196,12.37316593,158.08,158.02,1.26542803]
[1724709040423,12.37316593,158.08,158.01,15.9463]
[1724709040721,6.3267,158.06,158.01,15.9463]
[1724709045509,6.3267,158.06,158.02,6.2236]
[1724709047425,6.3271,158.05,158.02,6.2236]
[1724709050345,6.3275,158.04,158.02,6.2236]
[1724709051230,6.3271,158.05,158.02,6.2236]
[1724709051936,6.3276,158.04,158.02,6.2236]
[1724709053035,6.3276,158.04,158.01,15.9463]
[1724709053429,6.3279,158.03,158.01,15.9463]
[1724709055036,6.3276,158.04,158.01,15.9463]
[1724709059817,6.3282,158.03,158.01,15.9463]
[1724709062947,6.3282,158.03,157.99,6.5297]
[1724709063323,6.3283,158.02,157.99,6.5297]
[1724709066127,32.37316593,158.07,157.99,12.8591]
[1724709066443,6.3279,158.03,157.99,6.5297]
[1724709075965,6.3284,158.02,157.99,6.5297]
[1724709077341,6.3279,158.03,157.99,6.5297]
[1724709082144,6.3279,158.03,158.0,1.58500804]
[1724709082345,6.3279,158.03,157.99,6.5297]
[1724709082667,6.3283,158.02,158.0,1.58499948]
[1724709082964,6.3283,158.02,157.99,6.5297]
[1724709083163,6.3283,158.02,158.0,1.58500831]
[1724709083367,6.3283,158.02,157.99,6.5297]
[1724709083569,6.3283,158.02,158.0,1.58500825]
[1724709083961,6.3283,158.02,157.99,6.5297]
[1724709084277,6.3279,158.03,158.0,1.58500821]
[1724709084574,6.3279,158.03,157.99,6.5297]
[1724709084744,6.3279,158.03,158.0,1.58500821]
[1724709084948,6.3279,158.03,157.99,6.5297]
[1724709085149,6.3279,158.03,158.0,1.58500789]
[1724709085372,6.3279,158.03,157.99,6.5297]
[1724709085756,6.3279,158.03,158.0,1.58500821]
[1724709085958,6.3279,158.03,157.99,6.5297]
[1724709086157,6.3279,158.03,158.0,1.58500821]
[1724709086468,6.3279,158.03,157.99,6.5297]
[1724709086665,6.3279,158.03,158.0,1.58500789]
[1724709086872,6.3279,158.03,157.99,6.5297]
[1724709087075,6.3279,158.03,158.0,1.58499968]
[1724709087262,6.3279,158.03,157.99,6.5297]
[1724709087465,6.3279,158.03,158.0,1.58499968]
[1724709087781,6.3279,158.03,157.99,6.5297]
[1724709087966,6.3279,158.03,158.0,1.5849995]
[1724709088278,6.3279,158.03,157.99,6.5297]
[1724709088474,6.3279,158.03,158.0,1.58500821]
[1724709088786,6.3279,158.03,157.99,6.5297]
[1724709091585,6.3285,158.02,157.99,6.5297]
[1724709095377,6.3285,158.02,158.0,1.58506601]
[1724709095580,6.3285,158.02,157.99,6.5297]
[1724709095757,6.3285,158.02,158.0,1.58506567]
[1724709096082,6.3285,158.02,157.99,6.5297]
[1724709096288,6.3285,158.02,158.0,1.58507388]
[1724709096587,6.3285,158.02,157.99,6.5297]
[1724709096887,6.3285,158.02,158.0,1.58507388]
[1724709097184,6.3285,158.02,157.99,6.5297]
[1724709097485,6.3285,158.02,158.0,1.58507388]
[1724709097785,6.3285,158.02,157.99,6.5297]
[1724709097966,6.3285,158.02,158.0,1.58508209]
[1724709098166,6.3285,158.02,157.99,6.5297]
[1724709098371,6.3285,158.02,158.0,1.58508177]
[1724709098569,6.3285,158.02,157.99,6.5297]
[1724709098774,6.3285,158.02,158.0,1.58508209]
[1724709098974,6.3285,158.02,157.99,6.5297]
[1724709099285,6.3285,158.02,158.0,1.58507356]
[1724709099491,6.3285,158.02,157.99,6.5297]
[1724709099700,35.8162,158.07,158.0,17.40699283]
[1724709099701,20.0,158.07,158.0,17.40699283]
[1724709099865,6.3274,158.05,158.0,15.8219]
[1724709100063,6.3276,158.04,158.0,15.8219]
[1724709103372,6.3276,158.04,158.01,1.58500714]
[1724709103693,6.3276,158.04,157.99,12.8588]
[1724709103871,6.3276,158.04,158.0,1.58500648]
[1724709104070,6.3276,158.04,158.01,1.58500648]
[1724709104388,6.3276,158.04,157.99,12.8588]
[1724709104565,6.3276,158.04,158.0,1.58507014]
[1724709104761,6.3276,158.04,157.99,12.8588]
[1724709104961,6.3276,158.04,158.0,1.58508184]
[1724709105182,6.3276,158.04,157.99,12.8588]
[1724709105383,6.3276,158.04,158.0,1.58504014]
[1724709105590,6.3276,158.04,157.99,12.8588]
[1724709105775,6.3276,158.04,158.0,1.58504018]
[1724709106066,6.3276,158.04,157.99,12.8588]
[1724709106273,6.3276,158.04,158.0,1.58504016]
[1724709106472,6.3276,158.04,158.01,1.58504016]
[1724709106689,6.3276,158.04,157.99,12.8588]
[1724709107081,6.3276,158.04,158.0,1.58507403]
[1724709107290,6.3279,158.03,157.99,12.8588]
[1724709107478,6.3279,158.03,158.0,1.58508614]
[1724709107692,6.3279,158.03,157.99,12.8588]
[1724709107892,6.3279,158.03,158.0,1.58508515]
[1724709108085,6.3279,158.03,157.99,12.8588]
[1724709108274,6.3279,158.03,158.0,1.58508514]
[1724709108592,6.3279,158.03,157.99,12.8588]
[1724709108774,6.3279,158.03,158.0,1.58508409]
[1724709109102,6.3279,158.03,157.99,12.8588]
[1724709109280,6.3279,158.03,158.0,1.58507335]
[1724709109467,6.3279,158.03,157.99,12.8588]
[1724709109664,6.3279,158.03,158.0,1.58507367]
[1724709109989,6.3279,158.03,157.99,12.8588]
[1724709110189,6.3283,158.02,158.0,1.58507367]
[1724709110390,15.8152,158.08,158.0,1.58507367]
[1724709110391,6.3279,158.03,158.0,1.58507367]
[1724709110690,6.3279,158.03,157.99,6.5297]
[1724709110907,6.3279,158.03,158.0,1.58508475]
[1724709111197,6.3279,158.03,157.99,6.5297]
[1724709111397,6.3279,158.03,158.0,1.58507369]
[1724709111569,6.3279,158.03,157.99,6.5297]
[1724709111868,6.3279,158.03,158.0,1.58506548]
[1724709112064,6.3279,158.03,157.99,6.5297]
[1724709112365,6.3279,158.03,158.0,1.5850658]
[1724709112565,6.3279,158.03,157.99,6.5297]
[1724709112766,6.3279,158.03,158.0,1.58507401]
[1724709112994,6.3279,158.03,157.99,6.5297]
[1724709113184,6.3279,158.03,158.0,1.58507401]
[1724709113390,6.3279,158.03,157.99,6.5297]
[1724709113817,6.3279,158.03,158.0,1.58507401]
[1724709113979,6.3279,158.03,157.99,6.5297]
[1724709114376,6.3279,158.03,158.0,1.58507401]
[1724709114674,6.3279,158.03,157.99,6.5297]
[1724709114870,6.3279,158.03,158.0,1.58507369]
[1724709115100,6.3279,158.03,157.99,6.5297]
[1724709115302,6.3279,158.03,158.0,1.58507369]
[1724709115502,6.3279,158.03,157.99,6.5297]
[1724709115802,6.3279,158.03,158.0,1.58507369]
[1724709116004,6.3279,158.03,157.99,12.8591]
[1724709116212,6.3279,158.03,158.0,1.5850356]
[1724709116395,6.3279,158.03,157.99,12.8591]
[1724709116591,6.3279,158.03,158.0,1.5850356]
[1724709116799,6.3279,158.03,157.99,12.8591]
[1724709117102,6.3279,158.03,158.0,1.58502962]
[1724709117324,6.3279,158.03,157.99,12.8591]
[1724709117479,6.3279,158.03,158.0,1.58502109]
[1724709117806,6.3279,158.03,157.99,12.8591]
[1724709118003,6.3279,158.03,158.0,1.58502141]
[1724709118302,6.3279,158.03,157.99,12.8591]
[1724709118477,6.3279,158.03,158.0,1.5850293]
[1724709118678,6.3279,158.03,157.99,12.8591]
[1724709118887,6.3279,158.03,158.0,1.5850293]
[1724709119180,6.3279,158.03,157.99,12.8591]
[1724709119378,6.3279,158.03,158.0,1.5850293]
[1724709119604,6.3279,158.03,157.99,12.8591]
[1724709119798,6.3279,158.03,158.0,1.58502962]
[1724709119994,6.3276,158.04,158.0,45.0]
[1724709122624,15.809,158.14,158.02,32.0626]
[1724709122919,6.3251,158.1,158.03,46.26525988]
[1724709123220,6.326,158.08,158.03,46.26525988]
[1724709124020,6.3263,158.07,158.03,46.26525988]
[1724709124398,6.3263,158.07,158.03,45.0]
[1724709126810,6.3263,158.07,158.04,1.26525963]
[1724709127116,6.3267,158.06,158.03,45.0]